fUSD/lending_fUSD_20251110
["ID","MTS","AMOUNT","RATE_DAILY","PERIOD"]
[393557206,1762797065575,-173.93257087,0.000393,120]
[393557207,1762797065585,-185.40060576,0.000393,120]
[393557208,1762797065594,-688.0,0.00039306,20]
[393557209,1762797065604,-176.94,0.00039334,2]
[393557210,1762797065613,-169.17,0.00039334,2]
[393557211,1762797065623,-549.49,0.00039334,2]
[393557212,1762797065632,-549.49,0.00039334,2]
[393557213,1762797065642,-1206.51,0.00039334,2]
[393557214,1762797065652,-169.17,0.00039334,2]
[393557215,1762797065662,-549.49,0.00039334,2]
[393557216,1762797065672,-1206.51,0.00039334,2]
[393557217,1762797065682,-169.17,0.00039334,2]
[393557218,1762797065693,-1206.51,0.00039334,2]
[393557219,1762797065703,-168.65,0.00039334,2]
[393557220,1762797065712,-549.49,0.00039334,2]
[393557221,1762797065722,-549.49,0.00039334,2]
[393557222,1762797065731,-593.47377791,0.00039334,2]
[393557223,1762797066473,195.0,0.0002736,120]
[393557224,1762797066571,195.0,0.00026127,120]
[393557225,1762797066682,195.0,0.00027474,120]
[393557226,1762797236315,-300.0,0.00017999,2]
[393557227,1762797272799,500.0,0.00027529,120]
[393557228,1762797273031,500.0,0.00027979,120]
[393557229,1762797273312,500.0,0.00027999,120]
[393557230,1762797273567,500.0,0.00029599,120]
[393557231,1762797273803,500.0,0.00029999,120]
[393557232,1762797406916,1102.95103793,0.00030136,120]
[393557233,1762797552179,5081.72,0.00011677,2]
[393557234,1762797552414,4918.29,0.00012267,2]
[393557235,1762797552438,163.43,0.00012267,2]
[393557236,1762797552639,5081.72,0.00012858,2]
[393557237,1762797553071,4754.86,0.00013448,2]
[393557238,1762797553094,326.86,0.00013448,2]
[393557239,1762797553314,5081.72,0.00014039,2]
[393557240,1762797553791,4591.43,0.00014629,2]
[393557241,1762797553816,490.29,0.00014629,2]
[393557242,1762797553849,5081.72,0.0001522,2]
[393557243,1762797554040,4428.0,0.0001581,2]
[393557244,1762797554063,653.72,0.0001581,2]
[393557245,1762797554296,5081.72,0.00016401,2]
[393557246,1762797554676,4264.57,0.00016991,2]
[393557247,1762797554699,817.15,0.00016991,2]
[393557248,1762797555117,5081.72,0.00017581,2]
[393557249,1762797559710,255.0,0.00017901,2]
[393557251,1762797588508,255.0,0.00017507,2]
[393557252,1762797591939,255.0,0.0001763,2]
[393557253,1762797604584,327.0,0.00017654,2]
[393557254,1762797617686,255.0,0.00017416,2]
[393557255,1762797618560,-255.0,0.00017654,2]
[393557256,1762797618589,-38.04947608,0.00017661,2]
[393557257,1762797623390,-160.36061873,0.00017661,2]
[393557259,1762797629942,710.38,0.00013699,2]
[393557261,1762797738431,-56.58990519,0.00017661,2]
[393557262,1762797738455,-254.61854156,0.00017733,2]
[393557263,1762797769206,182.22,0.00029283,120]
[393557264,1762797837676,168.0,0.00017474,2]
[393557265,1762797849537,229.4,0.00030137,120]
[393557266,1762797908810,150.0,0.00029283,120]
[393557267,1762797919010,-5.52244811,0.00017733,2]
[393557268,1762797919032,-369.44081654,0.00017801,2]
[393557269,1762797927084,-192.31896509,0.00017801,2]
[393557270,1762797932462,-156.48139711,0.00017801,2]
[393557271,1762797956689,1936.38,0.00016473,2]
[393557272,1762797977997,567.28222974,0.00017801,2]
[393557278,1762798148488,514.33065251,0.00019,7]
[393557306,1762798232173,-255.0,0.00017804,2]
[393557308,1762798232184,-331.0,0.00017804,2]
[393557310,1762798232195,-191.62814718,0.00017901,2]
[393557311,1762798232204,-168.0,0.00017953,2]
[393557312,1762798232215,-114.53095282,0.00018066,2]
[393557313,1762798232227,-140.46904718,0.00018066,2]
[393557314,1762798232236,-255.0,0.00018108,2]
[393557315,1762798232246,-255.0,0.00018109,2]
[393557316,1762798232257,-1200.0,0.0001816,2]
[393557317,1762798232267,-300.0,0.0001816,2]
[393557318,1762798232277,-1200.0,0.0001816,2]
[393557319,1762798232287,-300.0,0.0001816,2]
[393557320,1762798232297,-428.77,0.00018161,2]
[393557321,1762798232307,-151.0,0.00018161,2]
[393557322,1762798232317,-151.0,0.00018161,2]
[393557323,1762798232336,-151.0,0.00018161,2]
[393557324,1762798232347,-151.0,0.00018161,2]
[393557325,1762798232357,-151.0,0.00018161,2]
[393557326,1762798232368,-151.0,0.00018161,2]
[393557327,1762798232379,-151.0,0.00018161,2]
[393557328,1762798232389,-151.0,0.00018161,2]
[393557329,1762798232399,-151.0,0.00018161,2]
[393557330,1762798232409,-151.0,0.00018161,2]
[393557331,1762798232419,-151.0,0.00018161,2]
[393557332,1762798232429,-151.0,0.00018161,2]
[393557333,1762798232440,-151.0,0.00018161,2]
[393557334,1762798232450,-151.0,0.00018161,2]
[393557335,1762798232460,-151.0,0.00018161,2]
[393557336,1762798232470,-151.0,0.00018161,2]
[393557337,1762798232480,-151.0,0.00018161,2]
[393557338,1762798232490,-151.0,0.00018161,2]
[393557339,1762798232502,-151.0,0.00018161,2]
[393557340,1762798232512,-151.0,0.00018161,2]
[393557341,1762798232524,-255.0,0.0001817,2]
[393557342,1762798232536,-5081.72,0.00018172,2]
[393557343,1762798232548,-255.0,0.00018189,2]
[393557344,1762798232558,-255.0,0.00018238,2]
[393557345,1762798232569,-255.0,0.00018259,2]
[393557346,1762798232579,-255.0,0.0001839,2]
[393557347,1762798232589,-428.77,0.00018435,2]
[393557348,1762798232599,-255.0,0.00018591,2]
[393557350,1762798232610,-255.0,0.00018607,2]
[393557352,1762798232620,-255.0,0.00018622,2]
[393557354,1762798232630,-255.0,0.00018651,2]
[393557356,1762798232642,-428.77,0.00018709,2]
[393557358,1762798232653,-5081.72,0.00018762,2]
[393557360,1762798232662,-168.0,0.00018825,2]
[393557362,1762798232673,-255.0,0.00018864,2]
[393557363,1762798232682,-255.0,0.00018977,2]
[393557364,1762798232693,-428.77,0.00018983,2]
[393557365,1762798232703,-255.0,0.00019007,2]
[393557366,1762798232714,-4737.51,0.00019079,2]
[393557367,1762798232730,-255.0,0.00019089,2]
[393557368,1762798232741,-255.0,0.00019158,2]
[393557369,1762798232752,-200.0,0.0001919,2]
[393557370,1762798232763,-428.79,0.00019257,2]
[393557371,1762798232775,-500.0,0.00019352,2]
[393557372,1762798232787,-500.0,0.00019352,2]
[393557373,1762798232797,-500.0,0.00019352,2]
[393557374,1762798232807,-500.0,0.00019352,2]
[393557375,1762798232821,-328.0013903,0.00019352,2]
[393557376,1762798232832,-500.0,0.00019352,2]
[393557377,1762798232842,-500.0,0.00019352,2]
[393557378,1762798232851,-5081.72,0.00019353,2]
[393557379,1762798232862,-195.0,0.00019584,2]
[393557380,1762798232873,-250.0,0.00019584,2]
[393557381,1762798232883,-195.0,0.00019584,2]
[393557382,1762798232894,-166.66,0.00019755,2]
[393557383,1762798232904,-420.0,0.00019811,2]
[393557384,1762798232913,-1680.0,0.00019909,2]
[393557385,1762798232923,-5081.72,0.00019943,2]
[393557386,1762798232937,-710.38,0.00020187,2]
[393557387,1762798232947,-500.0,0.00020324,2]
[393557388,1762798232959,-350.2942881,0.00020324,2]
[393557389,1762798232969,-500.0,0.00020324,2]
[393557390,1762798232980,-500.0,0.00020324,2]
[393557391,1762798232990,-500.0,0.00020324,2]
[393557392,1762798232999,-500.0,0.00020324,2]
[393557393,1762798233010,-500.0,0.00020324,2]
[393557394,1762798233020,-500.0,0.00020324,2]
[393557395,1762798233030,-500.0,0.00020324,2]
[393557396,1762798233040,-500.0,0.00020324,2]
[393557397,1762798233051,-500.0,0.00020324,2]
[393557398,1762798233061,-500.0,0.00020324,2]
[393557399,1762798233071,-500.0,0.00020324,2]
[393557400,1762798233081,-500.0,0.00020324,2]
[393557401,1762798233094,-500.0,0.00020324,2]
[393557402,1762798233106,-500.0,0.00020324,2]
[393557403,1762798233116,-549.10696179,0.00020324,2]
[393557404,1762798233126,-500.0,0.00020324,2]
[393557405,1762798233136,-500.0,0.00020324,2]
[393557406,1762798233147,-500.0,0.00020324,2]
[393557407,1762798233158,-500.0,0.00020324,2]
[393557408,1762798233169,-500.0,0.00020324,2]
[393557409,1762798233180,-500.0,0.00020324,2]
[393557410,1762798233193,-2751.0,0.00020326,2]
[393557411,1762798233205,-156.78,0.00020341,2]
[393557412,1762798233223,-166.66,0.00020407,2]
[393557413,1762798233245,-5081.72,0.00020534,2]
[393557414,1762798233265,-166.66,0.00021059,2]
[393557415,1762798233280,-5081.72,0.00021124,2]
[393557416,1762798233303,-280.0,0.00021613,2]
[393557417,1762798233319,-156.78,0.00021711,2]
[393557418,1762798233338,-166.66,0.00021711,2]
[393557419,1762798233355,-5081.72,0.00021715,2]
[393557420,1762798233368,-2351.0,0.00021825,2]
[393557421,1762798233385,-199.74607944,0.00021838,2]
[393557422,1762798233400,-5081.72,0.00022305,2]
[393557423,1762798233421,-2500.0,0.00022323,2]
[393557424,1762798233438,-7425.58285911,0.00022335,2]
[393557425,1762798233455,-506.40366036,0.00022336,2]
[393557426,1762798233475,-12807.94498052,0.00022336,2]
[393557427,1762798233491,-5319.8626,0.00022336,2]
[393557428,1762798233508,-166.66,0.00022363,2]
[393557429,1762798233533,-48903.60677878,0.00022423,2]
[393557430,1762798234242,-5219.76267076,0.00022423,2]
[393557431,1762798234574,-1501.0,0.00022423,2]
[393557432,1762798234586,-614.50389,0.00022423,2]
[393557433,1762798234605,-405.14652792,0.00022423,2]
[393557434,1762798237848,-367.09779435,0.00021907,2]
[393557435,1762798237859,-191.62814718,0.00022323,2]
[393557436,1762798237868,-284.43712216,0.00022423,2]
[393557437,1762798237906,-1456.17236326,0.00022423,2]
[393557438,1762798237963,-631.69097,0.00022423,2]
[393557439,1762798238025,-870.76457577,0.00022423,2]
[393557440,1762798238041,-93780.29563669,0.00022423,2]
[393557441,1762798238051,-182.27467518,0.00022435,2]
[393557442,1762798238062,-500.0,0.00022435,2]
[393557443,1762798238072,-593.73677193,0.00022435,2]
[393557444,1762798238082,-201.17299265,0.00022435,2]
[393557445,1762798238092,-500.0,0.00022436,2]
[393557446,1762798238102,-500.0,0.00022436,2]
[393557447,1762798238112,-500.0,0.00022436,2]
[393557448,1762798238123,-500.0,0.00022436,2]
[393557450,1762798238132,-500.0,0.00022436,2]
[393557452,1762798238142,-500.0,0.00022436,2]
[393557454,1762798238153,-513.25695741,0.00022436,2]
[393557456,1762798238163,-500.0,0.00022436,2]
[393557458,1762798238172,-500.0,0.00022436,2]
[393557460,1762798238182,-500.0,0.00022436,2]
[393557462,1762798238193,-500.0,0.00022436,2]
[393557464,1762798238203,-500.0,0.00022436,2]
[393557466,1762798238212,-174.29171252,0.00022436,2]
[393557468,1762798238223,-500.0,0.00022436,2]
[393557470,1762798238232,-500.0,0.00022436,2]
[393557472,1762798238243,-500.0,0.00022436,2]
[393557474,1762798238253,-500.0,0.00022436,2]
[393557476,1762798238263,-500.0,0.00022436,2]
[393557478,1762798238274,-420000.0,0.00022436,2]
[393557481,1762798238285,-211.34745138,0.00022436,2]
[393557483,1762798238295,-500.0,0.00022473,2]
[393557485,1762798238305,-500.0,0.00022473,2]
[393557487,1762798238314,-2000.0,0.000225,2]
[393557489,1762798238324,-5081.72,0.00022896,2]
[393557491,1762798238334,-166.66,0.00023015,2]
[393557493,1762798238344,-5994.96,0.0002331,2]
[393557495,1762798238354,-4693.65,0.00023401,2]
[393557497,1762798238364,-478.32096809,0.00023559,2]
[393557499,1762798238374,-1371.0,0.00023927,2]
[393557501,1762798238383,-7425.58285903,0.00024246,2]
[393557503,1762798238394,-12807.94498043,0.00024247,2]
[393557505,1762798238404,-196.37,0.00024658,2]
[393557507,1762798238414,-1000.0,0.00024658,2]
[393557509,1762798238424,-500.0,0.00024762,2]
[393557511,1762798238433,-500.0,0.00024762,2]
[393557513,1762798238443,-500.0,0.00024762,2]
[393557515,1762798238452,-500.0,0.00024762,2]
[393557517,1762798238462,-515.14114772,0.00024762,2]
[393557518,1762798238472,-500.0,0.00024762,2]
[393557519,1762798238482,-500.0,0.00024762,2]
[393557520,1762798238492,-500.0,0.00024762,2]
[393557521,1762798238502,-326.36673599,0.00024762,2]
[393557522,1762798238512,-500.0,0.00024762,2]
[393557523,1762798238522,-500.0,0.00024762,2]
[393557524,1762798238533,-500.0,0.00024762,2]
[393557525,1762798238542,-500.0,0.00024762,2]
[393557526,1762798238552,-500.0,0.00024762,2]
[393557527,1762798238563,-500.0,0.00024763,2]
[393557528,1762798238578,-500.0,0.00024763,2]
[393557529,1762798238588,-245.68850147,0.00024763,2]
[393557531,1762798238598,-500.0,0.00024763,2]
[393557533,1762798238608,-500.0,0.00024763,2]
[393557535,1762798238619,-500.0,0.00024763,2]
[393557537,1762798238630,-500.0,0.00024763,2]
[393557539,1762798238640,-500.0,0.00024763,2]
[393557541,1762798238650,-500.0,0.00024763,2]
[393557543,1762798238662,-500.0,0.00024763,2]
[393557545,1762798238672,-500.0,0.00024763,2]
[393557547,1762798238683,-500.0,0.00024763,2]
[393557549,1762798238694,-500.0,0.00024763,2]
[393557551,1762798238705,-500.0,0.00024763,2]
[393557553,1762798238716,-500.0,0.00024763,2]
[393557555,1762798238727,-500.0,0.00024763,2]
[393557557,1762798238738,-500.0,0.00024763,2]
[393557559,1762798238749,-500.0,0.00024773,2]
[393557561,1762798238759,-506.40366032,0.00024792,2]
[393557563,1762798238770,-500.0,0.00024799,2]
[393557566,1762798238780,-478.32096809,0.000248,3]
[393557567,1762798238790,-213332.769301,0.000248,3]
[393557569,1762798238800,-500.0,0.00024863,2]
[393557572,1762798238810,-500.0,0.00024863,2]
[393557574,1762798238823,-500.0,0.00024863,2]
[393557576,1762798238832,-500.0,0.00024863,2]
[393557578,1762798238842,-500.0,0.00024863,2]
[393557580,1762798238851,-500.0,0.00024899,2]
[393557581,1762798238862,-500.0,0.00024899,2]
[393557584,1762798238873,-500.0,0.00024899,2]
[393557586,1762798238883,-500.0,0.00024899,2]
[393557588,1762798238894,-500.0,0.00024899,2]
[393557590,1762798238904,-500.0,0.00024899,2]
[393557592,1762798238913,-72294.2081895,0.000249,3]
[393557594,1762798238923,-2500.0,0.00025424,3]
[393557596,1762798238933,-2500.0,0.00025424,3]
[393557598,1762798238944,-500.0,0.00025686,2]
[393557600,1762798238955,-500.0,0.00025686,2]
[393557602,1762798238964,-500.0,0.00025709,2]
[393557604,1762798238976,-151.0,0.00025976,7]
[393557606,1762798238985,-289.8,0.00025979,2]
[393557608,1762798238996,-500.0,0.00025979,2]
[393557610,1762798239007,-500.0,0.00025979,2]
[393557612,1762798239016,-500.0,0.00025979,2]
[393557614,1762798239026,-12548.9864295,0.00026146,3]
[393557616,1762798239036,-18073.5520474,0.00026146,3]
[393557618,1762798239046,-7425.58285903,0.00026156,2]
[393557620,1762798239057,-12807.94498043,0.00026157,2]
[393557622,1762798239067,-2000.0,0.000262,2]
[393557624,1762798239077,-1000.0,0.00026234,2]
[393557626,1762798239086,-500.0,0.0002624,2]
[393557628,1762798239096,-500.0,0.00026457,2]
[393557630,1762798239105,-500.0,0.00026457,2]
[393557632,1762798239115,-215.76240444,0.00026457,2]
[393557634,1762798239125,-710.38,0.00026676,2]
[393557636,1762798239141,-500.0,0.00026788,2]
[393557638,1762798239151,-12548.9864295,0.0002696,3]
[393557640,1762798239161,-18073.5520474,0.0002696,3]
[393557642,1762798239172,-1316.0,0.00026969,2]
[393557645,1762798239183,-608.0,0.0002697,2]
[393557647,1762798239196,-3426.0,0.0002697,2]
[393557649,1762798239206,-574.0,0.0002697,2]
[393557651,1762798239217,-820.0,0.0002697,2]
[393557653,1762798239227,-1597.0,0.0002697,2]
[393557655,1762798239238,-1274.0,0.0002697,2]
[393557657,1762798239248,-813.0,0.0002697,2]
[393557659,1762798239257,-906.0,0.00026984,2]
[393557661,1762798239268,-1189.0,0.00026984,2]
[393557663,1762798239278,-6479.0,0.00026984,2]
[393557665,1762798239288,-6662.0,0.00026984,2]
[393557667,1762798239298,-2142.0,0.00026984,2]
[393557669,1762798239309,-560.0,0.00026984,2]
[393557670,1762798239319,-500.0,0.00027157,2]
[393557671,1762798239329,-506.40366032,0.00027249,2]
[393557672,1762798239340,-150.0,0.00027397,7]
[393557673,1762798239350,-196.37,0.00027397,2]
[393557674,1762798239360,-300.0,0.00027397,2]
[393557675,1762798239371,-4286.77,0.000274,7]
[393557676,1762798239381,-500.0,0.00027529,30]
[393557677,1762798239391,-500.0,0.00027979,30]
[393557678,1762798239401,-500.0,0.00027989,2]
[393557679,1762798239412,-500.0,0.00027999,2]
[393557680,1762798239422,-500.0,0.00027999,30]
[393557681,1762798239432,-12548.9864295,0.00028045,3]
[393557682,1762798239444,-18073.5520474,0.00028057,3]
[393557683,1762798239454,-7425.58285903,0.00028067,2]
[393557684,1762798239464,-12807.94498043,0.00028068,2]
[393557685,1762798239474,-429.06305333,0.0002808,2]
[393557686,1762798239484,-12548.9864295,0.0002809,3]
[393557687,1762798239496,-942.17,0.000281,7]
[393557688,1762798239506,-1936.38,0.00028254,2]
[393557689,1762798239516,-192.62359444,0.0002871,30]
[393557690,1762798239526,-409.94511611,0.00028887,2]
[393557691,1762798239536,-500.0,0.00029075,2]
[393557692,1762798239547,-250.0,0.00029283,2]
[393557693,1762798239557,-150.0,0.00029283,2]
[393557694,1762798239567,-500.0,0.00029599,30]
[393557695,1762798239578,-506.40366032,0.00029705,2]
[393557696,1762798239587,-1541.0,0.000299,5]
[393557697,1762798239597,-2000.0,0.000299,2]
[393557698,1762798239607,-4286.77,0.000299,7]
[393557699,1762798239616,-12548.9864295,0.00029949,3]
[393557700,1762798239626,-18073.5520474,0.00029959,3]
[393557701,1762798239636,-12548.9864295,0.00029967,3]
[393557702,1762798239646,-1316.0,0.00029969,2]
[393557703,1762798239656,-608.0,0.0002997,2]
[393557704,1762798239666,-3426.0,0.0002997,2]
[393557705,1762798239676,-574.0,0.0002997,2]
[393557706,1762798239686,-820.0,0.0002997,2]
[393557707,1762798239701,-1597.0,0.0002997,2]
[393557708,1762798239711,-1274.0,0.0002997,2]
[393557709,1762798239722,-813.0,0.0002997,2]
[393557710,1762798239732,-18073.5520474,0.00029974,3]
[393557711,1762798239742,-7425.58285903,0.00029978,2]
[393557712,1762798239751,-12807.94498043,0.00029978,2]
[393557713,1762798239761,-906.0,0.00029984,2]
[393557714,1762798239771,-1189.0,0.00029984,2]
[393557715,1762798239780,-6479.0,0.00029984,2]
[393557716,1762798239789,-6662.0,0.00029984,2]
[393557717,1762798239799,-2142.0,0.00029984,2]
[393557718,1762798239809,-500.0,0.00029999,30]
[393557719,1762798239823,-167.0,0.0003,14]
[393557720,1762798239833,-196.37,0.00030137,2]
[393557721,1762798239843,-500.0,0.00030137,50]
[393557722,1762798239852,-150.0,0.00030137,60]
[393557723,1762798239862,-150.0,0.00030137,60]
[393557724,1762798239873,-500.0,0.00030137,60]
[393557725,1762798239885,-150.0,0.00030137,60]
[393557726,1762798239896,-153.02553641,0.00030137,60]
[393557727,1762798239907,-150.0,0.00030137,60]
[393557728,1762798239918,-151.42017453,0.00030137,60]
[393557729,1762798239928,-500.0,0.00030137,60]
[393557730,1762798239937,-514.52071223,0.00030137,60]
[393557731,1762798239948,-150.0,0.00030137,14]
[393557732,1762798239957,-500.0,0.00030137,60]
[393557733,1762798239967,-150.0,0.00030137,23]
[393557734,1762798239977,-150.0,0.00030137,60]
[393557735,1762798239987,-150.0,0.00030137,60]
[393557736,1762798239996,-150.0,0.00030137,60]
[393557737,1762798240008,-150.0,0.00030137,60]
[393557738,1762798240018,-150.0,0.00030137,60]
[393557739,1762798240028,-150.0,0.00030137,60]
[393557740,1762798240039,-150.0,0.00030137,2]
[393557741,1762798240049,-500.0,0.00030137,60]
[393557742,1762798240060,-150.0,0.00030137,60]
[393557743,1762798240069,-500.0,0.00030137,60]
[393557744,1762798240084,-150.0,0.00030137,60]
[393557745,1762798240094,-150.0,0.00030137,60]
[393557746,1762798240104,-150.0,0.00030137,60]
[393557747,1762798240114,-150.0,0.00030137,2]
[393557748,1762798240125,-150.0,0.00030137,60]
[393557749,1762798240135,-500.0,0.00030137,60]
[393557750,1762798240145,-150.0,0.00030137,60]
[393557751,1762798240155,-500.0,0.00030137,2]
[393557752,1762798240165,-150.0,0.00030137,2]
[393557753,1762798240174,-150.0,0.00030137,60]
[393557754,1762798240184,-500.0,0.00030137,60]
[393557755,1762798240195,-150.0,0.00030137,2]
[393557756,1762798240206,-150.0,0.00030137,60]
[393557757,1762798240216,-500.0,0.00030137,60]
[393557758,1762798240226,-500.0,0.00030137,60]
[393557759,1762798240237,-942.17,0.000302,7]
[393557761,1762798240246,-12548.9864295,0.00030264,3]
[393557763,1762798240256,-500.0,0.00030274,50]
[393557765,1762798240265,-150.0,0.00030274,60]
[393557767,1762798240275,-202.56493624,0.00030274,60]
[393557769,1762798240285,-500.0,0.00030274,60]
[393557771,1762798240295,-150.0,0.00030274,60]
[393557773,1762798240306,-150.0,0.00030274,60]
[393557775,1762798240315,-150.0,0.00030274,14]
[393557777,1762798240326,-600.0,0.00030274,60]
[393557779,1762798240337,-150.0,0.00030274,23]
[393557781,1762798240347,-150.0,0.00030274,60]
[393557783,1762798240357,-150.0,0.00030274,60]
[393557785,1762798240366,-294.56198183,0.00030274,60]
[393557787,1762798240376,-150.0,0.00030274,60]
[393557789,1762798240386,-150.0,0.00030274,60]
[393557792,1762798240397,-150.0,0.00030274,60]
[393557794,1762798240407,-150.0,0.00030274,2]
[393557796,1762798240416,-609.0,0.00030274,60]
[393557798,1762798240426,-264.07981499,0.00030274,60]
[393557800,1762798240436,-553.45223361,0.00030274,60]
[393557803,1762798240446,-218.36330593,0.00030274,60]
[393557806,1762798240456,-241.94050601,0.00030274,60]
[393557809,1762798240466,-150.0,0.00030274,2]
[393557811,1762798240480,-150.0,0.00030274,60]
[393557813,1762798240489,-500.0,0.00030274,60]
[393557815,1762798240499,-150.0,0.00030274,60]
[393557816,1762798240509,-500.0,0.00030274,60]
[393557817,1762798240519,-500.0,0.00030274,60]
[393557818,1762798240528,-500.0,0.00030274,60]
[393557819,1762798240537,-979.0,0.000304,2]
[393557820,1762798240547,-500.0,0.00030411,50]
[393557821,1762798240558,-150.0,0.00030411,60]
[393557822,1762798240567,-500.0,0.00030411,60]
[393557823,1762798240577,-150.0,0.00030411,60]
[393557824,1762798240586,-150.0,0.00030411,60]
[393557825,1762798240595,-200.0,0.00030411,14]
[393557826,1762798240605,-150.0,0.00030411,23]
[393557827,1762798240614,-150.0,0.00030411,60]
[393557828,1762798240625,-150.0,0.00030411,60]
[393557829,1762798240635,-150.0,0.00030411,60]
[393557830,1762798240645,-168.24179502,0.00030411,60]
[393557831,1762798240655,-150.0,0.00030411,2]
[393557832,1762798240665,-150.0,0.00030411,2]
[393557833,1762798240676,-500.0,0.00030411,60]
[393557834,1762798240685,-150.0,0.00030411,60]
[393557835,1762798240696,-332.41813526,0.00030411,60]
[393557836,1762798240706,-500.0,0.00030411,60]
[393557837,1762798240716,-500.0,0.00030411,60]
[393557838,1762798240726,-500.0,0.00030548,50]
[393557839,1762798240735,-162.05082562,0.00030548,60]
[393557840,1762798240745,-500.0,0.00030548,60]
[393557841,1762798240754,-205.6242052,0.00030548,60]
[393557842,1762798240764,-200.0,0.00030548,60]
[393557843,1762798240774,-150.0,0.00030548,23]
[393557844,1762798240783,-154.5547493,0.00030548,60]
[393557845,1762798240989,-200.08208835,0.00030548,60]
[393557846,1762798241001,-150.0,0.00030548,2]
[393557847,1762798241011,-150.0,0.00030548,2]
[393557848,1762798241021,-178.0,0.00030548,60]
[393557849,1762798241031,-500.0,0.00030548,60]
[393557850,1762798241041,-500.0,0.00030548,60]
[393557851,1762798241051,-302.0,0.000306,2]
[393557852,1762798241061,-159.11,0.00030615,2]
[393557853,1762798241071,-574.14159547,0.00030684,30]
[393557854,1762798241080,-500.0,0.00030684,120]
[393557855,1762798241090,-500.0,0.00030685,50]
[393557856,1762798241100,-494.56248889,0.00030685,60]
[393557857,1762798241111,-187.6283326,0.00030685,2]
[393557858,1762798241120,-500.0,0.00030685,60]
[393557859,1762798241130,-500.0,0.00030685,60]
[393557860,1762798241140,-500.0,0.00030822,50]
[393557861,1762798241149,-547.50724804,0.00030822,60]
[393557862,1762798241159,-500.0,0.00030822,60]
[393557863,1762798241168,-500.0,0.00030959,50]
[393557864,1762798241178,-500.0,0.00030959,60]
[393557865,1762798241188,-500.0,0.00031096,50]
[393557866,1762798241197,-500.0,0.00031096,60]
[393557867,1762798241207,-500.0,0.00031233,50]
[393557868,1762798241217,-500.0,0.00031233,60]
[393557869,1762798241227,-188.24843534,0.0003137,5]
[393557870,1762798241238,-500.0,0.0003137,50]
[393557871,1762798241247,-500.0,0.0003137,60]
[393557872,1762798241257,-4286.77,0.000314,30]
[393557873,1762798241267,-18073.5520474,0.00031416,3]
[393557874,1762798241276,-580.75,0.00031426,10]
[393557875,1762798241285,-1143.55,0.00031426,2]
[393557876,1762798241294,-8251.37,0.00031426,2]
[393557877,1762798241303,-9999.99,0.00031426,2]
[393557878,1762798241313,-150.99,0.00031426,2]
[393557879,1762798241322,-211.46535217,0.00031507,50]
[393557880,1762798241331,-500.0,0.00031507,2]
[393557881,1762798241340,-497.26749005,0.00031507,60]
[393557882,1762798241350,-942.17,0.000316,7]
[393557883,1762798241359,-7425.58285903,0.00031888,2]
[393557884,1762798241368,-12807.94498043,0.00031889,2]
[393557885,1762798241377,-18073.5520474,0.0003198,3]